bitfinex/quotes_BTCUSD_20211001
["timestamp","ask_amount","ask_price","bid_price","bid_amount"]
[1633084212491,4.66e-06,46349.0,46340.0,0.00123887]
[1633084212693,7.21e-06,46362.0,46348.0,0.00022562]
[1633084212894,0.38,46423.0,46348.0,0.00022562]
[1633084212895,0.2,46389.0,46364.0,0.00129743]
[1633084213098,0.2,46393.0,46390.0,0.02035147]
[1633084213291,0.2,46393.0,46356.0,0.00125177]
[1633084213292,0.5,46400.0,46381.0,0.00129701]
[1633084213491,0.1732,46374.0,46364.0,0.0012034]
[1633084213691,0.1732,46374.0,46353.0,0.00124627]
[1633084213692,0.17897847,46368.0,46353.0,0.00124627]
[1633084213893,0.17897847,46368.0,46337.0,0.0699]
[1633084213894,0.2449,46345.0,46337.0,0.0699]
[1633084214090,0.2449,46345.0,46344.0,0.0105]
[1633084214295,0.10168014,46319.0,46310.0,0.06407103]
[1633084214495,0.10168014,46319.0,46293.0,0.3]
[1633084214496,1.4e-07,46319.0,46293.0,0.3]
[1633084214694,0.06402,46325.0,46315.0,0.09148136]
[1633084214695,0.26402,46325.0,46315.0,0.09148136]
[1633084214893,0.26402,46325.0,46312.0,0.005]
[1633084214894,0.10522004,46323.0,46312.0,0.005]
[1633084215099,0.10522004,46323.0,46263.0,0.129693]
[1633084215100,0.2186557,46309.0,46263.0,0.129693]
[1633084215292,1.30878602,46327.0,46263.0,0.129693]
[1633084215293,0.2,46324.0,46300.0,0.005]
[1633084215495,0.09235061,46326.0,46299.0,0.35]
[1633084215702,0.00124981,46328.0,46299.0,0.35]
[1633084215703,0.00124981,46328.0,46327.0,0.25469215]
[1633084215893,0.38,46354.0,46327.0,0.25469215]
[1633084215894,0.10107802,46360.0,46341.0,0.42359237]
[1633084216100,0.09099722,46390.0,46380.0,0.35]
[1633084216301,2.42e-06,46402.0,46400.0,0.96066004]
[1633084216494,0.003036,46402.0,46401.0,0.6618056]
[1633084216695,0.0002,46470.0,46401.0,0.6618056]
[1633084216696,0.17431608,46473.0,46417.0,0.003125]
[1633084217010,0.00124232,46492.0,46473.0,0.01592238]
[1633084217254,0.67552843,46513.0,46480.0,0.00079999]
[1633084217395,0.67552843,46513.0,46486.0,0.00059999]
[1633084217396,0.005,46492.0,46486.0,0.00059999]
[1633084217593,0.23335418,46520.0,46486.0,0.11726275]
[1633084217791,0.23335418,46520.0,46476.0,0.06121141]
[1633084217792,0.21296391,46486.0,46476.0,0.04485373]
[1633084218002,0.2282734,46459.0,46446.0,0.00123886]
[1633084218295,0.2282734,46459.0,46412.0,0.05330117]
[1633084218296,0.04818904,46417.0,46412.0,0.05330117]
[1633084218493,0.04818904,46417.0,46405.0,0.003036]
[1633084218494,0.45114348,46416.0,46405.0,0.003036]
[1633084218795,0.45114348,46416.0,46349.0,0.16839524]
[1633084218796,0.00849249,46377.0,46349.0,0.16839524]
[1633084219001,0.00849249,46377.0,46366.0,0.3502]
[1633084219292,0.00849249,46377.0,46350.0,0.27434832]
[1633084219293,0.98075298,46377.0,46374.0,0.005]
[1633084219492,0.30331426,46396.0,46374.0,0.005]
[1633084219493,0.00122587,46391.0,46386.0,0.34741377]
[1633084219700,0.00995013,46435.0,46424.0,0.00239765]
[1633084219898,0.0002,46474.0,46457.0,0.02722279]
[1633084220093,0.0002,46474.0,46462.0,0.12854669]
[1633084220296,0.07379514,46473.0,46472.0,0.24100705]
[1633084220495,0.12854669,46462.0,46436.0,0.1022636]
[1633084220694,0.00123266,46469.0,46437.0,0.00129458]
[1633084220897,0.75,46462.0,46440.0,0.00123631]
[1633084221097,0.22305778,46461.0,46451.0,0.00124765]
[1633084221299,1.31118523,46434.0,46424.0,0.00239765]
[1633084221596,1.31118523,46434.0,46404.0,0.00129502]
[1633084221597,0.45146318,46433.0,46404.0,0.00129502]
[1633084221895,0.45146318,46433.0,46383.0,0.12775738]
[1633084221896,0.27361546,46395.0,46386.0,0.00126099]
[1633084222096,0.00051401,46410.0,46395.0,0.1782]
[1633084222302,2.11565161,46434.0,46416.0,0.44218646]
[1633084222303,1.70668347,46434.0,46416.0,0.44218646]
[1633084222499,0.203325,46450.0,46395.0,0.1782]
[1633084222500,0.00921823,46455.0,46434.0,2.30698242]
[1633084222706,0.0005,46501.0,46439.0,0.00129616]
[1633084222900,0.0002,46480.0,46454.0,0.00122003]
[1633084223107,0.0002,46480.0,46472.0,0.00126823]
[1633084223295,0.0002,46480.0,46478.0,0.00121867]
[1633084223495,1.35,46491.0,46464.0,0.00100483]
[1633084223695,2.13829025,46433.0,46428.0,7.43e-06]
[1633084223899,2.13829025,46433.0,46370.0,0.18318633]
[1633084223900,0.23668688,46410.0,46409.0,0.00120895]
[1633084224094,0.00124248,46429.0,46414.0,0.02854648]
[1633084224296,0.00124248,46429.0,46396.0,0.33945182]
[1633084224297,0.00121383,46418.0,46404.0,0.00127498]
[1633084224494,0.77062507,46492.0,46434.0,2.78784009]
[1633084224796,0.18432773,46459.0,46435.0,0.14854814]
[1633084225104,0.28244036,46459.0,46435.0,0.39180932]
[1633084225306,0.28244036,46459.0,46434.0,2.78784009]
[1633084225307,0.00126737,46446.0,46434.0,2.78784009]
[1633084225493,0.00126737,46446.0,46443.0,0.23552139]
[1633084225693,0.07590287,46465.0,46444.0,0.40658253]
[1633084225894,0.00129109,46475.0,46444.0,0.40658253]
[1633084226099,2.77412088,46434.0,46429.0,0.00124296]
[1633084226305,0.6339592,46434.0,46409.0,0.00123953]
[1633084226498,0.393574,46383.0,46381.0,0.00128752]
[1633084226709,0.393574,46383.0,46365.0,1.25858929]
[1633084226710,0.393574,46383.0,46366.0,0.34931472]
[1633084226898,0.393574,46383.0,46365.0,0.905]
[1633084226899,0.17696,46395.0,46383.0,0.60763028]
[1633084227109,0.539345,46418.0,46394.0,1.52632013]
[1633084227296,4.59e-06,46411.0,46409.0,0.64298276]
[1633084227602,6.57e-06,46433.0,46432.0,0.00123594]
[1633084227799,2.16364729,46465.0,46432.0,0.00123594]
[1633084227999,0.07433167,46463.0,46447.0,0.00129798]
[1633084228200,0.08113025,46448.0,46430.0,0.21292983]
[1633084228405,0.00123467,46449.0,46430.0,0.21292983]
[1633084228596,0.00129312,46444.0,46430.0,0.21292983]
[1633084228798,0.00129312,46444.0,46430.0,0.21272983]
[1633084228999,0.00129312,46444.0,46418.0,0.20881908]
[1633084229000,0.17388492,46430.0,46418.0,0.20881908]
[1633084229266,0.00127166,46422.0,46418.0,0.20881908]
[1633084229457,3.12e-06,46444.0,46443.0,0.36647745]
[1633084229663,0.15045109,46468.0,46443.0,0.36751995]
[1633084229863,0.17693894,46475.0,46458.0,0.00125979]
[1633084230056,0.31120578,46475.0,46458.0,0.00125979]
[1633084230266,0.31120578,46475.0,46448.0,0.5464665]
[1633084230267,0.4153046,46475.0,46448.0,0.54526]
[1633084230462,0.09309475,46474.0,46448.0,0.54526]
[1633084230658,0.30997788,46475.0,46449.0,0.0005301]
[1633084230858,0.23233146,46443.0,46435.0,0.21530304]
[1633084231057,0.2043992,46442.0,46411.0,0.24870626]
[1633084231259,0.0005301,46441.0,46428.0,0.00120253]
[1633084231465,0.00129151,46461.0,46443.0,0.4092704]
[1633084231662,0.13303894,46475.0,46458.0,0.215229]
[1633084231862,0.13303894,46475.0,46464.0,0.00129746]
[1633084232062,0.13303894,46475.0,46447.0,0.00123976]
[1633084232063,0.0002,46468.0,46447.0,0.00123976]
[1633084232281,0.08427924,46485.0,46459.0,0.00127436]
[1633084232466,10.93080734,46500.0,46482.0,0.00129927]
[1633084232660,9.71636734,46500.0,46482.0,0.11129927]
[1633084232862,9.71636734,46500.0,46483.0,0.10625063]
[1633084233058,9.71636734,46500.0,46483.0,0.11]
[1633084233268,0.0002,46490.0,46484.0,0.23481938]
[1633084233462,9.71636734,46500.0,46492.0,0.322595]
[1633084233665,9.71636734,46500.0,46484.0,0.05]
[1633084233880,1.43389294,46478.0,46464.0,0.001213]
[1633084234066,1.43389294,46478.0,46446.0,0.03]
[1633084234067,0.08988356,46477.0,46467.0,0.24068885]
[1633084234262,9.71636734,46500.0,46467.0,0.24068885]
[1633084234263,9.47794638,46500.0,46467.0,0.24068885]
[1633084234866,9.47794638,46500.0,46480.0,0.00120362]
[1633084235270,9.04789938,46500.0,46497.0,0.0999]
[1633084235473,9.04789938,46500.0,46498.0,0.35203793]
[1633084235668,8.61771938,46500.0,46498.0,0.35203793]
[1633084235878,8.61771938,46500.0,46499.0,0.00120846]
[1633084236067,0.56704779,46497.0,46482.0,0.215191]
[1633084236270,0.13681579,46497.0,46484.0,0.00124285]
[1633084236467,0.0002,46493.0,46484.0,0.00124285]
[1633084236670,0.0002,46493.0,46481.0,0.21496]
[1633084236867,0.23258082,46495.0,46481.0,0.21476]
[1633084237069,0.07874156,46494.0,46482.0,0.0005301]
[1633084237270,0.07874156,46494.0,46462.0,0.00123241]
[1633084237271,1.1728284,46463.0,46462.0,0.00123241]
[1633084237476,1.21512013,46463.0,46420.0,0.215255]
[1633084237674,1.21512013,46463.0,46418.0,0.00127481]
[1633084237675,4.62104511,46419.0,46418.0,0.00127481]
[1633084237872,4.62104511,46419.0,46394.0,0.215478]
[1633084237873,0.32869076,46409.0,46401.0,0.005]
[1633084238075,0.29430688,46407.0,46401.0,0.005]
[1633084238371,0.30551214,46409.0,46394.0,0.46222651]
[1633084238576,0.30551214,46409.0,46390.0,0.24487719]
[1633084238577,3.86856209,46419.0,46408.0,1.45]
[1633084238780,0.538945,46446.0,46419.0,3.86610209]
[1633084238781,0.00126227,46444.0,46419.0,3.86610209]
[1633084238972,0.001235,46460.0,46420.0,0.69997065]
[1633084239182,0.13236027,46467.0,46442.0,0.00126541]
[1633084239372,0.13236027,46467.0,46423.0,1.38715]
[1633084239373,0.13236027,46467.0,46463.0,0.09286947]
[1633084239573,0.0002,46476.0,46464.0,0.00512546]
[1633084239773,0.0002,46476.0,46445.0,0.00122897]
[1633084239774,0.42859833,46464.0,46458.0,0.00100127]
[1633084239973,0.25436869,46464.0,46445.0,0.00122897]
[1633084240173,0.25436869,46464.0,46443.0,0.43057746]
[1633084240174,0.18787588,46462.0,46451.0,0.23318688]
[1633084240375,0.29787588,46462.0,46443.0,0.215283]
[1633084240575,0.29699239,46462.0,46456.0,0.015]
[1633084240772,0.11,46462.0,46456.0,0.0148]
[1633084241073,0.14436869,46464.0,46456.0,0.230137]
[1633084241280,0.24806869,46464.0,46457.0,0.39504838]
[1633084241476,0.08248802,46472.0,46464.0,0.18786869]
[1633084241682,0.0002,46477.0,46470.0,0.00122069]
[1633084241876,0.0002,46477.0,46460.0,0.24438528]
[1633084241877,1.12593317,46464.0,46456.0,0.01600139]
[1633084242079,0.2752,46456.0,46443.0,0.0012619]
[1633084242277,0.93806448,46464.0,46456.0,0.27372]
[1633084242476,0.93806448,46464.0,46461.0,0.0012658]
[1633084242680,0.08094393,46463.0,46457.0,0.33265922]
[1633084242881,0.93806448,46464.0,46462.0,0.19312243]
[1633084243079,0.50756148,46464.0,46463.0,1.66026633]
[1633084243281,0.50756148,46464.0,46458.0,0.00125234]
[1633084243477,0.50756148,46464.0,46456.0,0.27372]
[1633084243478,0.238713,46461.0,46459.0,0.21525]
[1633084243676,0.50756148,46464.0,46459.0,0.21525]
[1633084243879,0.50756148,46464.0,46460.0,0.30488194]
[1633084244076,0.50756148,46464.0,46460.0,0.57517449]
[1633084244278,0.0002,46479.0,46460.0,0.57517449]
[1633084244478,0.0002,46479.0,46461.0,0.31080247]
[1633084244679,0.0002,46479.0,46462.0,0.0999]
[1633084244878,0.0002,46479.0,46465.0,0.215198]
[1633084245080,0.0002,46479.0,46462.0,0.1497]
[1633084245081,0.215198,46465.0,46462.0,0.0997]
[1633084245278,0.215198,46465.0,46434.0,0.19710028]
[1633084245279,0.540396,46465.0,46441.0,0.00123433]
[1633084245480,0.00120483,46452.0,46422.0,0.00125747]
[1633084245684,0.11000483,46452.0,46431.0,0.2497]
[1633084245883,0.486654,46456.0,46434.0,0.00126649]
[1633084246086,0.17545076,46465.0,46461.0,0.22653868]
[1633084246279,0.11,46466.0,46457.0,0.35603768]
[1633084246596,0.17643162,46471.0,46427.0,0.00129297]
[1633084246597,0.0002,46431.0,46427.0,0.00129297]
[1633084246780,0.0002,46431.0,46415.0,0.21542796]
[1633084246980,0.1002,46482.0,46434.0,1.02505452]
[1633084247185,0.24713283,46472.0,46471.0,0.10743986]
[1633084247380,0.65713283,46472.0,46454.0,0.49908652]
[1633084247678,0.65713283,46472.0,46454.0,0.39908652]
[1633084247679,0.24713283,46472.0,46454.0,0.39908652]
[1633084247885,0.24713283,46472.0,46455.0,0.047442]
[1633084248081,0.07143624,46458.0,46455.0,0.047242]
[1633084248292,0.11,46458.0,46455.0,0.047242]
[1633084248480,0.11,46458.0,46429.0,0.00129473]
[1633084248481,0.0891,46453.0,46429.0,0.00129473]
[1633084248680,0.0891,46453.0,46419.0,3.86610209]
[1633084248882,0.04320496,46461.0,46419.0,3.86610209]
[1633084248883,0.0012721,46458.0,46454.0,0.99707304]
[1633084249084,0.0002,46480.0,46454.0,0.99707304]
[1633084249085,0.0002,46480.0,46455.0,0.3819474]
[1633084249285,0.0002,46480.0,46457.0,0.00127882]
[1633084249484,0.0002,46480.0,46447.0,0.00247953]
[1633084249485,0.08782118,46454.0,46447.0,0.09501452]
[1633084249782,0.00128148,46477.0,46454.0,0.08762118]
[1633084249985,0.09746,46471.0,46464.0,0.21527324]
[1633084250186,0.05151042,46501.0,46487.0,1.5]
[1633084250385,7.75659387,46500.0,46488.0,0.44447632]
[1633084250582,7.75659387,46500.0,46486.0,0.01125882]
[1633084250583,7.75659387,46500.0,46493.0,0.09700982]
[1633084250786,0.25643068,46533.0,46509.0,0.0481002]
[1633084250988,0.0003,46550.0,46528.0,0.214883]
[1633084250989,0.1,46538.0,46528.0,0.214883]
[1633084251186,2.525e-05,46557.0,46530.0,1.59608607]
[1633084251390,0.00120315,46578.0,46554.0,0.09815101]
[1633084251391,0.09880566,46573.0,46554.0,0.09815101]
[1633084251589,5.66e-06,46573.0,46572.0,0.09208263]
[1633084251784,0.001536,46590.0,46576.0,0.0889]
[1633084251986,0.001536,46590.0,46577.0,0.43337937]
[1633084252183,0.111536,46590.0,46577.0,0.43337937]
[1633084252385,0.09563247,46613.0,46576.0,0.0889]
[1633084252386,0.00099999,46613.0,46576.0,0.0889]
[1633084252587,0.00099999,46613.0,46543.0,0.57934308]
[1633084252588,0.17623195,46554.0,46549.0,0.03473135]
[1633084252785,0.31633104,46538.0,46535.0,0.37748802]
[1633084252984,0.31633104,46538.0,46530.0,0.35]
[1633084252985,0.31633104,46538.0,46530.0,0.3498]
[1633084253185,0.42633104,46538.0,46530.0,0.3498]
[1633084253391,0.31633104,46538.0,46530.0,0.3494]
[1633084253593,0.00124312,46532.0,46516.0,0.00125436]
[1633084253789,0.322695,46530.0,46510.0,0.35346235]
[1633084253986,0.00125595,46513.0,46510.0,0.35346235]
[1633084254185,5.62758901,46504.0,46501.0,3.65e-06]
[1633084254385,0.222052,46503.0,46501.0,3.65e-06]
[1633084254692,0.222052,46503.0,46462.0,0.35726626]
[1633084254693,0.42470076,46459.0,46455.0,0.00249112]
[1633084254886,1.91328634,46455.0,46445.0,0.025]
[1633084255088,1.91328634,46455.0,46408.0,0.18387006]
[1633084255089,0.14154638,46414.0,46408.0,0.18387006]
[1633084255298,0.14154638,46414.0,46390.0,0.12263383]
[1633084255299,0.07397302,46413.0,46390.0,0.12263383]
[1633084255485,0.14725192,46384.0,46379.0,0.12264739]
[1633084255692,0.00124213,46402.0,46374.0,0.00125015]
[1633084255693,0.20359337,46375.0,46374.0,0.00125015]
[1633084255891,0.10124213,46402.0,46372.0,0.12306425]
[1633084255892,0.00597118,46402.0,46378.0,0.005]
[1633084256092,0.05667235,46427.0,46400.0,0.12136073]
[1633084256297,1.0433,46453.0,46426.0,0.09662562]
[1633084256298,0.86649304,46431.0,46426.0,0.09662562]
[1633084256492,1.91328634,46455.0,46432.0,0.56039282]
[1633084256685,1.91328634,46455.0,46436.0,0.00099999]
[1633084256888,0.20063164,46453.0,46438.0,0.00099999]
[1633084257087,0.2,46437.0,46432.0,0.56039282]
[1633084257286,1.5,46452.0,46432.0,0.56039282]
[1633084257287,0.03734458,46456.0,46441.0,0.003125]
[1633084257487,0.005,46524.0,46497.0,2.60235884]
[1633084257688,0.11,46524.0,46497.0,0.24817472]
[1633084257886,0.5,46565.0,46498.0,0.0898805]
[1633084257887,0.00124039,46532.0,46498.0,0.0898805]
[1633084258097,0.00124171,46574.0,46498.0,0.0898805]
[1633084258098,0.7674,46528.0,46525.0,0.03530057]
[1633084258285,0.09127941,46565.0,46537.0,0.12001662]
[1633084258485,0.11,46565.0,46544.0,0.00445897]
[1633084258686,0.11,46565.0,46517.0,0.13652421]
[1633084258687,0.26844429,46523.0,46517.0,0.13652421]
[1633084258886,0.29746626,46564.0,46488.0,0.00128801]
[1633084258887,1.55886325,46497.0,46488.0,0.00128801]
[1633084259085,1.05337637,46497.0,46488.0,0.00128801]
[1633084259297,1.05337637,46497.0,46481.0,0.00121935]
[1633084259298,1.11357637,46497.0,46481.0,0.00121935]
[1633084259487,0.0892058,46496.0,46481.0,0.00121935]
[1633084259687,0.0892058,46496.0,46468.0,0.00099999]
[1633084259688,1.5,46489.0,46465.0,0.00623887]
[1633084259888,1.5,46489.0,46483.0,7.64e-06]
[1633084259889,0.59919528,46488.0,46483.0,7.64e-06]
[1633084260087,0.59919528,46488.0,46453.0,0.01309584]
[1633084260088,1.5,46486.0,46453.0,0.01309584]
[1633084260286,0.00120566,46494.0,46464.0,0.005]
[1633084260587,0.80755907,46514.0,46496.0,0.08784124]
[1633084260588,0.8002,46514.0,46496.0,0.08784124]
[1633084260788,0.8002,46514.0,46498.0,0.0002]
[1633084260988,0.00129035,46535.0,46534.0,0.24730738]
[1633084261289,0.15512423,46587.0,46545.0,0.00127686]
[1633084261290,0.00285699,46587.0,46545.0,0.00127686]
[1633084261593,0.005,46588.0,46537.0,0.00128048]
[1633084261787,0.005,46588.0,46522.0,0.00126997]
[1633084261788,0.81889871,46525.0,46499.0,0.35]
[1633084261987,0.81889871,46525.0,46478.0,0.21618359]
[1633084261988,1.70703307,46495.0,46482.0,0.10124407]
[1633084262187,1.70703307,46495.0,46467.0,0.0012535]
[1633084262188,0.2204828,46478.0,46467.0,0.0012535]
[1633084262399,0.2204828,46478.0,46467.0,0.005]
[1633084262592,0.09171489,46472.0,46467.0,0.005]
[1633084262987,0.00014775,46472.0,46468.0,0.11541919]
[1633084263183,0.00014775,46472.0,46467.0,0.005]
[1633084263396,0.00129632,46482.0,46478.0,0.2204828]
[1633084263587,2.35373886,46517.0,46478.0,0.2204828]
[1633084263588,0.21532841,46501.0,46480.0,0.09971425]
[1633084263795,0.21532841,46501.0,46484.0,0.00121799]
[1633084263796,0.0002,46501.0,46484.0,0.00121799]
[1633084263986,0.0002,46501.0,46472.0,0.0111]
[1633084263987,1.59218775,46496.0,46472.0,0.0111]
[1633084264185,1.59218775,46496.0,46461.0,0.31344618]
[1633084264186,0.24071764,46473.0,46461.0,0.31344618]
[1633084264384,0.0012217,46481.0,46472.0,0.91345952]
[1633084264385,0.00129083,46479.0,46472.0,0.91345952]
[1633084264586,0.09616488,46516.0,46472.0,0.91345952]
[1633084264587,0.001409,46501.0,46496.0,1.13674882]
[1633084264786,0.0002,46517.0,46502.0,0.19993114]
[1633084264984,0.0002,46517.0,46496.0,1.13674882]
[1633084265184,0.0002,46517.0,46496.0,1.13608262]
[1633084265185,0.00125045,46504.0,46496.0,1.13608262]
[1633084265400,1.0257987,46496.0,46473.0,0.003125]
[1633084265587,0.07996682,46482.0,46473.0,0.003125]
[1633084265985,0.64443639,46494.0,46485.0,0.51023183]
[1633084266190,0.0185,46497.0,46496.0,3.01381679]
[1633084266398,0.0002,46503.0,46496.0,1.69692162]
[1633084266592,0.0002,46503.0,46461.0,0.10003994]
[1633084266593,1.18732844,46496.0,46461.0,0.10003994]
[1633084266787,0.00124905,46485.0,46473.0,0.00109172]
[1633084267088,0.20830501,46491.0,46465.0,0.0012303]
[1633084267293,0.4503766,46496.0,46465.0,0.0012303]
[1633084267490,0.0201516,46496.0,46478.0,0.00122313]
[1633084268087,0.07984182,46493.0,46472.0,0.18081816]
[1633084268289,0.0201516,46496.0,46477.0,0.17664292]
[1633084268485,0.0201516,46496.0,46480.0,0.11287287]
[1633084268686,0.00126914,46498.0,46497.0,0.0293484]
[1633084268890,0.00167912,46519.0,46516.0,2.25779289]
[1633084269093,0.0002,46519.0,46517.0,1.53591319]
[1633084269299,5.0,46568.0,46517.0,1.53591319]
[1633084269300,0.07956924,46546.0,46519.0,0.08003718]
[1633084269498,0.00120461,46565.0,46522.0,0.01234486]
[1633084269690,0.25,46561.0,46523.0,0.00120404]
[1633084269888,0.25,46561.0,46523.0,0.00080404]
[1633084269889,0.48344709,46560.0,46523.0,0.00080404]
[1633084270104,0.0893,46535.0,46523.0,0.00080404]
[1633084270288,0.0893,46535.0,46527.0,0.07796872]
[1633084270492,0.07923128,46567.0,46527.0,0.07796872]
[1633084270493,0.00929355,46553.0,46549.0,0.04054681]
[1633084270699,0.00638968,46592.0,46558.0,0.11852253]
[1633084270889,4.569194,46568.0,46567.0,0.09559797]
[1633084271091,4.139739,46568.0,46567.0,0.39999588]
[1633084271287,0.12772907,46565.0,46563.0,0.33591244]
[1633084271488,0.12772907,46565.0,46547.0,0.00083085]
[1633084271489,0.23772907,46565.0,46547.0,0.00083085]
[1633084271793,0.12895595,46565.0,46558.0,0.0498]
[1633084271988,0.222052,46564.0,46558.0,0.0498]
[1633084272217,4.88e-06,46568.0,46564.0,0.00929355]
[1633084272390,0.065,46582.0,46568.0,1.32787547]
[1633084272603,0.0999,46594.0,46568.0,1.32787547]
[1633084272604,0.0999,46594.0,46587.0,0.00121039]
[1633084272790,0.09060645,46594.0,46587.0,0.00121039]
[1633084272990,0.09060645,46594.0,46584.0,0.05]
[1633084273188,0.19555247,46593.0,46586.0,0.18904071]
[1633084273390,0.00025501,46593.0,46584.0,0.05]
[1633084273589,0.00025501,46593.0,46551.0,0.214755]
[1633084273590,0.02180678,46581.0,46568.0,7.69e-06]
[1633084273800,0.31837091,46568.0,46545.0,0.0010729]
[1633084273990,0.54358167,46567.0,46552.0,0.05]
[1633084274189,0.31837091,46568.0,46556.0,0.11805325]
[1633084274397,0.31270031,46567.0,46563.0,0.0993]
[1633084274590,0.31270031,46567.0,46552.0,0.0498]
[1633084274591,0.222052,46566.0,46552.0,0.0498]
[1633084274802,0.36184473,46553.0,46552.0,0.0498]
[1633084274991,0.09768961,46563.0,46553.0,0.44723109]
[1633084275189,0.09768961,46563.0,46555.0,0.24058252]
[1633084275397,0.31837091,46568.0,46555.0,0.24058252]
[1633084275398,9.1e-07,46568.0,46565.0,0.00123031]
[1633084275591,0.00529008,46629.0,46599.0,0.18909507]
[1633084275592,1.06048594,46610.0,46599.0,0.18909507]
[1633084275794,0.32460531,46616.0,46590.0,0.0010278]
[1633084275993,0.05682,46611.0,46582.0,0.05]
[1633084276192,0.20638787,46587.0,46582.0,0.0498]
[1633084276390,0.05682,46586.0,46583.0,0.37647008]
[1633084276591,0.08315986,46615.0,46583.0,0.37647008]
[1633084276592,0.57959463,46614.0,46588.0,0.0012252]
[1633084276805,0.08540063,46635.0,46600.0,0.00124507]
[1633084276998,0.08540063,46635.0,46616.0,0.08409469]
[1633084277195,0.08040063,46635.0,46617.0,0.52302978]
[1633084277395,0.01657069,46639.0,46632.0,0.24389202]
[1633084277599,0.01657069,46639.0,46633.0,0.39508648]
[1633084277794,0.01657069,46639.0,46634.0,0.09458862]
[1633084277991,0.01657069,46639.0,46635.0,0.35079889]
[1633084278192,0.01657069,46639.0,46635.0,0.09313569]
[1633084278397,2.90598,46649.0,46639.0,0.20395507]
[1633084278398,0.05682,46640.0,46639.0,0.20395507]
[1633084278593,2.90598,46649.0,46633.0,0.2896]
[1633084278594,0.08784141,46637.0,46633.0,0.2896]
[1633084278807,0.25217541,46637.0,46614.0,0.21446004]
[1633084278995,0.3855878,46636.0,46618.0,0.09681513]
[1633084279194,0.39325279,46636.0,46615.0,0.43788535]
[1633084279396,0.00121098,46636.0,46620.0,0.04875958]
[1633084279596,0.00121098,46636.0,46615.0,0.43665233]
[1633084279597,0.17114202,46621.0,46615.0,0.43665233]
[1633084279809,0.17114202,46621.0,46592.0,0.00121891]
[1633084279810,0.2499,46609.0,46592.0,0.00121891]
[1633084279993,0.2499,46609.0,46599.0,0.10231765]
[1633084280201,0.2499,46609.0,46592.0,0.00121891]
[1633084280396,0.2499,46609.0,46588.0,0.00129282]
[1633084280397,0.1015269,46599.0,46588.0,0.00129282]
[1633084280594,0.1015269,46599.0,46593.0,0.18101855]
[1633084280595,0.21286559,46598.0,46593.0,0.18101855]
[1633084280796,0.05682,46598.0,46593.0,0.18081855]
[1633084280994,0.80801937,46645.0,46597.0,1.38836162]
[1633084281198,0.01894575,46646.0,46626.0,0.21442242]
[1633084281396,0.01894575,46646.0,46637.0,0.03784141]
[1633084281600,5.03418641,46686.0,46637.0,0.03784141]
[1633084281601,0.0012464,46669.0,46646.0,0.29445525]
[1633084281809,0.0012464,46669.0,46637.0,1.41e-06]
[1633084281810,0.24799927,46641.0,46637.0,1.41e-06]
[1633084281996,0.222052,46640.0,46623.0,0.00120069]
[1633084282205,0.222052,46640.0,46605.0,0.00127382]
[1633084282206,0.45525758,46639.0,46611.0,0.00129999]
[1633084282496,0.45525758,46639.0,46601.0,2.30548241]
[1633084282497,0.00127255,46636.0,46601.0,2.20056691]
[1633084282703,0.00127255,46636.0,46597.0,0.10113064]
[1633084282704,0.22615498,46609.0,46605.0,0.22312043]
[1633084282896,0.00127255,46636.0,46597.0,0.10113064]
[1633084282897,0.00127255,46636.0,46598.0,0.41890559]
[1633084283097,0.40017056,46637.0,46608.0,0.00128067]
[1633084283307,0.40017056,46637.0,46599.0,0.29404271]
[1633084283308,1.5,46648.0,46618.0,0.0025156]
[1633084283495,0.233,46650.0,46633.0,0.00122999]
[1633084283702,0.233,46650.0,46618.0,0.55150362]
[1633084283703,2.78998,46649.0,46619.0,0.45598764]
[1633084283895,0.00027007,46647.0,46620.0,0.19552992]
[1633084284097,0.00027007,46647.0,46633.0,0.00107457]
[1633084284300,0.00027007,46647.0,46633.0,0.07838191]
[1633084284498,0.00027007,46647.0,46627.0,0.00128959]
[1633084284702,1.47609456,46649.0,46645.0,0.751]
[1633084284900,0.18251386,46684.0,46679.0,0.19183006]
[1633084285101,0.18251386,46684.0,46655.0,0.00126]
[1633084285303,0.61446915,46680.0,46655.0,0.00126]
[1633084285500,0.61446915,46680.0,46655.0,0.00106]
[1633084285902,0.25,46668.0,46650.0,2.27e-06]
[1633084286272,0.00126104,46672.0,46648.0,0.22841683]
[1633084286402,0.09859833,46652.0,46649.0,0.08040419]
[1633084286599,0.09859833,46652.0,46645.0,0.3402]
[1633084286600,0.36312803,46658.0,46645.0,0.3402]
[1633084286798,0.00120456,46670.0,46645.0,0.34]
[1633084286998,0.00120456,46670.0,46645.0,0.3398]
[1633084287200,0.46380327,46670.0,46645.0,0.3398]
[1633084287398,0.22533705,46665.0,46648.0,0.20267867]
[1633084287601,0.0045143,46671.0,46653.0,0.24023184]
[1633084287899,0.0045143,46671.0,46668.0,0.75]
[1633084288099,5.03418641,46686.0,46669.0,0.35069071]
[1633084288300,5.03418641,46686.0,46680.0,0.60946915]
[1633084288501,0.23427626,46698.0,46680.0,0.60946915]
[1633084288502,0.2284857,46698.0,46693.0,0.23618322]
[1633084288700,0.1441593,46698.0,46696.0,0.00121906]
[1633084289000,0.09801,46697.0,46686.0,0.30703589]
[1633084289268,0.1441593,46698.0,46697.0,0.005]
[1633084289408,0.01657069,46725.0,46697.0,3.57629837]
[1633084289602,0.01657069,46725.0,46699.0,2.8879744]
[1633084289814,5.0,46734.0,46729.0,0.1072252]
[1633084289815,1.40472125,46734.0,46729.0,0.1072252]
[1633084290001,1.40472125,46734.0,46725.0,1.5]
[1633084290002,1.40472125,46734.0,46730.0,0.41478393]
[1633084290199,1.40472125,46734.0,46727.0,0.44487414]
[1633084290401,1.40472125,46734.0,46726.0,0.7495]
[1633084290602,1.40472125,46734.0,46706.0,0.0012856]
[1633084290603,0.10310056,46722.0,46706.0,0.0012856]
[1633084290809,0.11373665,46711.0,46706.0,0.0008856]
[1633084291002,0.11373665,46711.0,46699.0,0.11064267]
[1633084291202,0.11373665,46711.0,46710.0,0.00127993]
[1633084291601,0.11373665,46711.0,46710.0,0.70016234]
[1633084291801,0.10373665,46711.0,46710.0,0.33468503]
[1633084292000,0.10373665,46711.0,46685.0,2.2540408]
[1633084292001,0.0973828,46700.0,46685.0,2.2540408]
[1633084292205,0.00124445,46723.0,46683.0,0.0849]
[1633084292206,1.53499,46694.0,46683.0,0.0849]
[1633084292413,1.53499,46694.0,46658.0,0.00127344]
[1633084292414,0.80589149,46680.0,46658.0,0.00127344]
[1633084292603,0.65063731,46679.0,46661.0,0.00121372]
[1633084292807,0.00124143,46669.0,46662.0,0.65550574]
[1633084293002,0.00124143,46669.0,46650.0,0.24029677]
[1633084293003,0.00246361,46669.0,46650.0,0.24029677]